bitfinex/quotes_BTCUSD_20250211
["timestamp","ask_amount","ask_price","bid_price","bid_amount"]
[1739289121116,0.02419737,97164.0,97155.0,0.42510365]
[1739289121320,0.154378,97164.0,97155.0,0.42510365]
[1739289121618,0.154375,97166.0,97155.0,0.42510365]
[1739289121941,0.0001066,97170.0,97155.0,0.42510365]
[1739289121942,0.154377,97165.0,97155.0,0.42510365]
[1739289122116,0.154378,97164.0,97155.0,0.42510365]
[1739289122663,0.154378,97164.0,97155.0,0.43110365]
[1739289122864,0.05662522,97163.0,97155.0,0.43310365]
[1739289123073,0.21100522,97163.0,97155.0,0.43310365]
[1739289123267,0.21100522,97163.0,97155.0,0.43110365]
[1739289123421,0.05662522,97163.0,97155.0,0.43110365]
[1739289123629,0.05662522,97163.0,97155.0,0.42710365]
[1739289123837,0.154384,97161.0,97155.0,0.3226]
[1739289124046,0.0001066,97165.0,97155.0,0.3296]
[1739289124247,0.0001066,97165.0,97155.0,0.3326]
[1739289124452,0.154385,97160.0,97155.0,0.3326]
[1739289125285,0.0001066,97165.0,97155.0,0.3256]
[1739289125556,0.154384,97160.0,97155.0,0.3226]
[1739289125679,0.002,97163.0,97155.0,0.3226]
[1739289126072,0.001,97163.0,97155.0,0.3226]
[1739289126474,0.001,97163.0,97155.0,0.3236]
[1739289126698,0.0001066,97165.0,97155.0,0.3236]
[1739289126898,0.0349805,97165.0,97155.0,0.002]
[1739289127099,0.0349805,97165.0,97156.0,0.0792]
[1739289127300,0.0001066,97165.0,97156.0,0.0792]
[1739289129136,0.0001066,97165.0,97156.0,0.0802]
[1739289130280,0.0001066,97165.0,97156.0,0.0832]
[1739289131067,0.0001066,97165.0,97156.0,0.004]
[1739289131290,0.154389,97157.0,97156.0,0.004]
[1739289131493,0.1698279,97157.0,97156.0,0.004]
[1739289132011,0.1698279,97157.0,97156.0,0.003]
[1739289132257,0.154402,97149.0,97142.0,0.4018]
[1739289132666,0.154401,97150.0,97142.0,0.4018]
[1739289132846,0.205865,97151.0,97142.0,0.0792]
[1739289133092,0.0154389,97157.0,97142.0,0.0792]
[1739289133320,0.154402,97149.0,97142.0,0.0792]
[1739289133512,0.154399,97151.0,97147.0,0.00222386]
[1739289133651,0.02042331,97156.0,97147.0,0.00022386]
[1739289133855,0.1494,97150.0,97147.0,0.00022386]
[1739289134656,0.205863,97152.0,97147.0,0.00022386]
[1739289134657,0.154399,97151.0,97147.0,0.00022386]
[1739289134861,0.1544,97150.0,97147.0,0.00022386]
[1739289135060,0.1994192,97151.0,97147.0,0.00022386]
[1739289135528,0.1994192,97151.0,97147.0,0.00722386]
[1739289135736,0.1994192,97151.0,97147.0,0.00922386]
[1739289135940,0.1994192,97151.0,97147.0,0.00222386]
[1739289136149,0.1544,97150.0,97147.0,0.00222386]
[1739289136351,0.1544,97150.0,97147.0,0.00822386]
[1739289136973,0.154403,97148.0,97147.0,0.00222386]
[1739289137417,0.154403,97148.0,97147.0,0.00022386]
[1739289137639,0.2110161,97148.0,97147.0,0.00022386]
[1739289138057,0.154412,97143.0,97136.0,0.07355515]
[1739289138296,9.125e-05,97148.0,97147.0,0.006]
[1739289138488,0.15449425,97148.0,97147.0,0.006]
[1739289138829,0.15449425,97148.0,97136.0,0.1760588]
[1739289138830,0.154408,97145.0,97136.0,0.1760588]
[1739289139637,0.154409,97144.0,97136.0,0.1760588]
[1739289139837,0.07098365,97143.0,97136.0,0.1760588]
[1739289140064,0.07098365,97143.0,97136.0,0.1900588]
[1739289140261,0.206879,97145.0,97136.0,0.1900588]
[1739289140428,0.154421,97137.0,97136.0,0.08755515]
[1739289140661,0.154421,97137.0,97136.0,0.014]
[1739289140868,0.154421,97137.0,97136.0,0.01]
[1739289142324,0.154429,97132.0,97124.0,0.0762]
[1739289142518,0.0154429,97131.0,97125.0,0.10250365]
[1739289143540,0.1698739,97131.0,97125.0,0.10250365]
[1739289143769,0.0154429,97131.0,97125.0,0.11450365]
[1739289143956,0.154434,97129.0,97125.0,0.012]
[1739289144160,0.154434,97129.0,97125.0,0.017]
[1739289144368,0.001,97131.0,97125.0,0.017]
[1739289144574,0.15543,97131.0,97125.0,0.017]
[1739289144776,0.15543,97131.0,97125.0,0.17144]
[1739289144980,0.154433,97130.0,97125.0,0.017]
[1739289145315,0.154434,97129.0,97125.0,0.005]
[1739289145529,0.2059,97135.0,97125.0,0.014]
[1739289145709,0.001,97129.0,97125.0,0.019]
[1739289145915,0.155434,97129.0,97125.0,0.014]
[1739289146115,0.154434,97129.0,97124.0,0.0762]
[1739289146316,0.154434,97129.0,97125.0,0.018]
[1739289146528,0.154434,97129.0,97125.0,0.013]
[1739289146676,0.001,97130.0,97125.0,0.01322386]
[1739289146879,0.154416,97140.0,97127.0,0.154436]
[1739289147087,0.0154416,97139.0,97128.0,0.10250365]
[1739289147366,0.154405,97147.0,97136.0,0.154422]
[1739289147511,0.154413,97142.0,97135.0,0.0762]
[1739289147723,0.154411,97143.0,97135.0,0.17870365]
[1739289148172,0.01243408,97149.0,97135.0,0.17870365]
[1739289148336,0.154419,97139.0,97135.0,0.17870365]
[1739289148541,0.154422,97136.0,97135.0,0.17870365]
[1739289148754,0.154421,97137.0,97135.0,0.17770365]
[1739289148954,0.154419,97138.0,97135.0,0.17770365]
[1739289149586,0.154419,97138.0,97135.0,0.17970365]
[1739289149787,0.01560321,97148.0,97135.0,0.17970365]
[1739289149990,0.154417,97139.0,97135.0,0.17770365]
[1739289150170,0.001,97138.0,97135.0,0.18670365]
[1739289150576,0.155419,97138.0,97135.0,0.18670365]
[1739289150778,0.001,97138.0,97135.0,0.0842]
[1739289150984,0.155419,97138.0,97135.0,0.0842]
[1739289151180,0.001,97138.0,97135.0,0.0842]
[1739289151361,0.154421,97137.0,97135.0,0.0772]
[1739289152490,0.155421,97137.0,97135.0,0.0832]
[1739289152702,0.001,97137.0,97135.0,0.0832]
[1739289152912,0.001,97137.0,97135.0,0.0862]
[1739289153681,0.001,97137.0,97136.0,0.10250365]
[1739289153883,0.001,97137.0,97136.0,0.25692565]
[1739289154077,0.001,97137.0,97136.0,0.38642565]
[1739289154693,0.001,97137.0,97136.0,0.1295]
[1739289154895,0.001,97137.0,97136.0,0.0817]
[1739289155097,0.154409,97145.0,97136.0,0.0847]
[1739289155334,0.001,97137.0,97136.0,0.0927]
[1739289155924,0.001,97137.0,97136.0,0.0897]
[1739289156133,0.05029675,97144.0,97136.0,0.0817]
[1739289156344,0.05029675,97144.0,97136.0,0.0837]
[1739289156768,0.05029675,97144.0,97136.0,0.0817]
[1739289157548,0.05658208,97143.0,97136.0,0.0817]
[1739289157866,0.154406,97146.0,97136.0,0.0817]
[1739289158073,0.154406,97147.0,97136.0,0.0817]
[1739289158448,9.125e-05,97148.0,97147.0,0.236105]
[1739289158805,9.125e-05,97148.0,97147.0,0.33760865]
[1739289159722,9.125e-05,97148.0,97147.0,0.33960865]
[1739289160663,9.125e-05,97148.0,97147.0,0.36960865]
[1739289161385,9.125e-05,97148.0,97147.0,0.36760865]
[1739289161550,9.125e-05,97148.0,97147.0,0.37160865]
[1739289161764,9.125e-05,97148.0,97147.0,0.36460865]
[1739289162137,9.125e-05,97148.0,97147.0,0.38060865]
[1739289162647,9.125e-05,97148.0,97147.0,0.36060865]
[1739289162904,9.125e-05,97148.0,97147.0,0.36660865]
[1739289163140,0.00109125,97148.0,97147.0,0.38160865]
[1739289163519,9.125e-05,97148.0,97147.0,0.36660865]
[1739289163938,0.00109125,97148.0,97147.0,0.38160865]
[1739289164313,0.00109125,97148.0,97147.0,0.38760865]
[1739289164512,0.00109125,97148.0,97147.0,0.38160865]
[1739289164679,0.00109125,97148.0,97147.0,0.37560865]
[1739289164883,0.00109125,97148.0,97147.0,0.38260865]
[1739289165833,0.00109125,97148.0,97147.0,0.35960865]
[1739289169652,0.00109125,97148.0,97147.0,0.20620365]
[1739289169858,0.00109125,97148.0,97147.0,0.36060865]
[1739289171274,0.0006659,97148.0,97147.0,0.36060865]
[1739289174263,0.0006659,97148.0,97147.0,0.36083251]
[1739289175080,0.0007725,97148.0,97147.0,0.36083251]
[1739289178363,0.0007725,97148.0,97147.0,0.20642751]
[1739289178532,0.0007725,97148.0,97147.0,0.02222386]
[1739289178935,0.17583945,97148.0,97147.0,0.02222386]
[1739289179472,0.02077055,97148.0,97147.0,0.00722386]
[1739289179838,0.0011066,97148.0,97147.0,0.01822386]
[1739289180666,0.0011066,97148.0,97147.0,0.01122386]
[1739289180880,0.1555096,97148.0,97147.0,0.01522386]
[1739289182710,0.0011066,97148.0,97147.0,0.01522386]
[1739289183095,0.0011066,97148.0,97147.0,0.09102386]
[1739289183863,0.0011066,97148.0,97147.0,0.24542886]
[1739289184000,0.0011066,97148.0,97147.0,0.09102386]
[1739289184339,0.0011066,97148.0,97147.0,0.34793251]
[1739289187656,0.0011066,97148.0,97147.0,0.37093251]
[1739289188368,0.0011066,97148.0,97147.0,1.04033251]
[1739289188554,0.0011066,97148.0,97147.0,1.08583251]
[1739289188986,0.0011066,97148.0,97147.0,0.57844266]
[1739289189382,0.06654099,97184.0,97148.0,0.173]
[1739289189600,0.154349,97182.0,97168.0,0.230171]
[1739289189727,0.154349,97182.0,97169.0,0.10250365]
[1739289190131,0.154348,97183.0,97169.0,0.10250365]
[1739289190342,0.154352,97181.0,97169.0,0.10250365]
[1739289190541,0.15435,97182.0,97169.0,0.10250365]
[1739289190990,0.154354,97179.0,97169.0,0.10250365]
[1739289191194,0.205801,97182.0,97169.0,0.10250365]
[1739289191195,0.15435,97182.0,97169.0,0.10250365]
[1739289191948,0.154349,97182.0,97169.0,0.10250365]
[1739289192506,0.00013308,97184.0,97169.0,0.10250365]
[1739289192507,0.20592908,97184.0,97169.0,0.10250365]
[1739289192715,0.05663502,97183.0,97169.0,0.10250365]
[1739289192928,0.154351,97182.0,97169.0,0.10250365]
[1739289193131,0.156351,97182.0,97169.0,0.10250365]
[1739289193962,0.205801,97181.0,97169.0,0.10250365]
[1739289194202,0.002,97182.0,97169.0,0.10250365]
[1739289194851,0.20592908,97184.0,97169.0,0.10250365]
[1739289195252,0.03011321,97183.0,97169.0,0.25687265]
[1739289195597,0.00013308,97184.0,97169.0,0.10250365]
[1739289195805,0.154348,97183.0,97169.0,0.25687265]
[1739289196012,0.15435,97182.0,97169.0,0.10250365]
[1739289196739,0.154349,97182.0,97169.0,0.10250365]
[1739289196930,0.00013308,97184.0,97169.0,0.10250365]
[1739289197062,0.154348,97183.0,97169.0,0.25687365]
[1739289197270,0.15435,97182.0,97169.0,0.10250365]
[1739289197490,0.00013308,97184.0,97169.0,0.10250365]
[1739289197727,0.001,97183.0,97170.0,0.154367]
[1739289197931,0.001,97183.0,97171.0,0.10250365]
[1739289198293,0.00013308,97184.0,97171.0,0.25686965]
[1739289198495,0.001,97182.0,97171.0,0.10250365]
[1739289198912,0.15447908,97184.0,97171.0,0.10250365]
[1739289199118,0.15458568,97184.0,97171.0,0.10250365]
[1739289199433,0.001,97183.0,97171.0,0.25686965]
[1739289200063,0.001,97183.0,97171.0,0.10250365]
[1739289200504,0.001,97183.0,97173.0,0.154363]
[1739289200734,0.00023968,97184.0,97174.0,0.10250365]
[1739289200937,0.00023968,97184.0,97175.0,0.154359]
[1739289200938,0.00123968,97184.0,97175.0,0.154359]
[1739289201151,0.00123968,97184.0,97176.0,0.10250365]
[1739289201331,0.00023968,97184.0,97176.0,0.25686065]
[1739289201551,0.00023968,97184.0,97179.0,0.154354]
[1739289201750,0.00023968,97184.0,97180.0,0.10250365]
[1739289202190,0.00023968,97184.0,97181.0,0.0808]
[1739289202394,0.00023968,97184.0,97181.0,0.18330365]
[1739289204684,0.00023968,97184.0,97181.0,0.18730365]
[1739289205296,0.00023968,97184.0,97181.0,0.19830365]
[1739289206413,0.00023968,97184.0,97182.0,0.10250365]
[1739289206981,0.00023968,97184.0,97183.0,0.203447]
[1739289207175,0.00023968,97184.0,97183.0,0.30595065]
[1739289207677,0.00023968,97184.0,97183.0,0.38675065]
[1739289208104,0.00023968,97184.0,97183.0,1.07915065]
[1739289208460,0.00023968,97184.0,97183.0,1.09415065]
[1739289208636,0.00023968,97184.0,97183.0,1.10115065]
[1739289208882,0.00023968,97184.0,97183.0,1.07915065]
[1739289209282,0.00023968,97184.0,97183.0,1.09415065]
[1739289210371,0.00023968,97184.0,97183.0,1.10115065]
[1739289211801,0.00023968,97184.0,97183.0,1.07815065]
[1739289212654,0.00023968,97184.0,97183.0,0.92815065]
[1739289212863,0.00023968,97184.0,97183.0,0.87905065]
[1739289213073,0.00023968,97184.0,97183.0,0.35965065]
[1739289215979,0.00023968,97184.0,97183.0,0.20530365]
[1739289216101,0.00023968,97184.0,97183.0,0.12450365]
[1739289217105,0.00023968,97184.0,97183.0,0.10950365]
[1739289217562,0.00023968,97184.0,97183.0,0.11550365]
[1739289217987,0.00023968,97184.0,97183.0,0.005]
[1739289218187,0.00023968,97184.0,97183.0,0.013]
[1739289218392,0.00023968,97184.0,97183.0,0.019]
[1739289218591,0.00023968,97184.0,97183.0,0.006]
[1739289218791,0.00023968,97184.0,97178.0,0.154355]
[1739289219010,0.00023968,97184.0,97183.0,0.005]
[1739289219425,0.00023968,97184.0,97179.0,0.10250365]
[1739289220085,0.00023968,97184.0,97183.0,0.014]
[1739289220483,0.00023968,97184.0,97179.0,0.10250365]
[1739289220794,0.00023968,97184.0,97183.0,0.003]
[1739289221164,0.00023968,97184.0,97179.0,0.10250365]
[1739289221360,0.00023968,97184.0,97183.0,0.005]
[1739289222254,0.00023968,97184.0,97183.0,0.26185065]
[1739289222388,0.154324,97198.0,97183.0,0.10750365]
[1739289222585,0.154324,97198.0,97184.0,0.10250365]
[1739289223087,0.0565837,97197.0,97184.0,0.10250365]
[1739289223289,0.14259424,97194.0,97183.0,0.017]
[1739289223494,0.154337,97190.0,97183.0,0.017]
[1739289223695,0.154335,97191.0,97183.0,0.005]
[1739289223935,0.154333,97192.0,97183.0,0.005]
[1739289224146,0.34837124,97193.0,97184.0,0.002]
[1739289224382,0.05541362,97192.0,97184.0,0.002]
[1739289224528,0.05541362,97192.0,97175.0,0.00022386]
[1739289224735,0.05541362,97192.0,97176.0,0.10250365]
[1739289224977,0.05541362,97192.0,97183.0,0.007]
[1739289225220,0.154335,97191.0,97184.0,0.002]
[1739289225566,0.154335,97191.0,97183.0,0.007]
[1739289226218,0.05541362,97192.0,97176.0,0.10250365]
[1739289226429,0.154344,97185.0,97184.0,0.003]
[1739289227818,0.154354,97179.0,97175.0,0.00022386]
[1739289228454,0.154356,97178.0,97175.0,0.00022386]
[1739289228674,0.205802,97181.0,97175.0,0.00022386]
[1739289228878,0.154359,97176.0,97175.0,0.00022386]
[1739289229317,0.154359,97176.0,97175.0,0.00322386]
[1739289229524,0.154359,97176.0,97175.0,0.00022386]
[1739289230335,0.154359,97176.0,97175.0,0.00922386]
[1739289230737,0.154359,97176.0,97175.0,0.00322386]
[1739289230939,0.21649821,97176.0,97175.0,0.00322386]
[1739289231119,0.21649821,97176.0,97175.0,0.00822386]
[1739289231333,0.21649821,97176.0,97175.0,0.01122386]
[1739289232196,0.154359,97176.0,97175.0,0.01122386]
[1739289233919,0.154355,97179.0,97175.0,0.01122386]
[1739289234247,0.20579,97187.0,97175.0,0.01122386]
[1739289234380,0.154349,97183.0,97175.0,0.01122386]
[1739289234587,0.15412218,97185.0,97175.0,0.01122386]
[1739289234794,0.01152794,97185.0,97176.0,0.0771]
[1739289234998,0.154338,97189.0,97176.0,0.0771]
[1739289235198,0.355775,97194.0,97176.0,0.0771]
[1739289235199,0.14259424,97190.0,97176.0,0.0771]
[1739289235568,0.205787,97188.0,97176.0,0.0771]
[1739289235742,0.154344,97186.0,97176.0,0.0771]
[1739289235880,0.20038164,97185.0,97176.0,0.0771]
[1739289236080,0.04603564,97185.0,97175.0,0.00022386]
[1739289236312,0.154349,97182.0,97175.0,0.00622386]
[1739289236642,0.154348,97183.0,97175.0,0.00022386]
[1739289236941,0.04603564,97185.0,97176.0,0.002]
[1739289237142,0.154344,97186.0,97176.0,0.002]
[1739289237490,0.205784,97189.0,97175.0,0.00022386]
[1739289237693,0.14359424,97190.0,97175.0,0.00322386]
[1739289237914,0.154348,97183.0,97175.0,0.00322386]
[1739289238115,0.14259424,97190.0,97175.0,0.00322386]
[1739289238314,0.154341,97188.0,97175.0,0.00422386]
[1739289238512,0.154341,97187.0,97175.0,0.00322386]
[1739289238938,0.03712504,97189.0,97175.0,0.00322386]
[1739289239184,0.154347,97184.0,97175.0,0.00322386]
[1739289239381,0.03712504,97189.0,97175.0,0.00022386]
[1739289239583,0.154346,97185.0,97176.0,0.001]
[1739289240047,0.154347,97183.0,97176.0,0.001]
[1739289240251,0.154347,97183.0,97175.0,0.00022386]
[1739289240252,0.07737345,97188.0,97175.0,0.00022386]
[1739289240464,0.205788,97187.0,97175.0,0.00022386]
[1739289240645,0.20579,97186.0,97175.0,0.00022386]
[1739289240967,0.154351,97181.0,97175.0,0.00022386]
[1739289241143,0.205795,97184.0,97176.0,0.001]
[1739289241350,0.154352,97181.0,97175.0,0.00022386]
[1739289241886,0.08196607,97185.0,97175.0,0.00022386]
[1739289242093,0.154346,97184.0,97175.0,0.00022386]
[1739289242464,0.15435,97182.0,97175.0,0.00022386]
[1739289242778,0.15435,97182.0,97175.0,0.00222386]
[1739289243395,0.360142,97184.0,97175.0,0.00822386]
[1739289243675,0.154344,97185.0,97175.0,0.00822386]
[1739289243875,0.154341,97188.0,97175.0,0.15658286]
[1739289244128,0.17057657,97195.0,97175.0,0.15658286]
[1739289244129,0.1208,97216.0,97183.0,0.077]
[1739289244310,0.1208,97216.0,97184.0,0.30829865]
[1739289244311,0.22585759,97209.0,97184.0,0.30829865]
[1739289244512,0.205759,97201.0,97184.0,0.10250365]
[1739289244727,0.154326,97197.0,97184.0,0.25684965]
[1739289244876,0.154331,97194.0,97184.0,0.10250365]
[1739289245471,0.205768,97197.0,97184.0,0.10250365]
[1739289245671,0.154329,97195.0,97184.0,0.10250365]
[1739289246079,0.205763,97199.0,97184.0,0.10250365]
[1739289246314,0.01256916,97203.0,97184.0,0.10250365]
[1739289246511,0.154329,97195.0,97184.0,0.10250365]
[1739289247305,0.15,97202.0,97184.0,0.10750365]
[1739289247505,0.15433,97194.0,97184.0,0.10750365]
[1739289247843,0.15433,97194.0,97184.0,0.10850365]
[1739289248006,0.15433,97194.0,97184.0,0.10750365]
[1739289248230,0.015433,97193.0,97184.0,0.10750365]
[1739289248712,0.015433,97193.0,97184.0,0.10250365]
[1739289249870,0.015433,97193.0,97184.0,0.10850365]
[1739289250077,0.15,97207.0,97184.0,0.10850365]
[1739289250279,0.01156916,97203.0,97185.0,0.154344]
[1739289250507,0.01156916,97203.0,97184.0,0.10850365]
[1739289250508,0.0001066,97203.0,97191.0,0.154333]
[1739289250767,0.0001066,97203.0,97193.0,0.077]
[1739289250907,0.0001066,97203.0,97190.0,0.14259424]
[1739289250908,0.0001066,97203.0,97195.0,0.231327]
[1739289251110,0.0001066,97203.0,97196.0,0.10250365]
[1739289251360,0.0001066,97203.0,97197.0,0.154325]
[1739289251530,0.0001066,97203.0,97198.0,0.10250365]
[1739289253339,0.0001066,97203.0,97198.0,0.10550365]
[1739289253518,0.0001066,97203.0,97198.0,0.10650365]
[1739289255636,0.0001066,97203.0,97202.0,0.232817]
[1739289255836,0.0001066,97203.0,97202.0,0.35832065]
[1739289256244,0.0001066,97203.0,97202.0,0.40392065]
[1739289257099,0.0001066,97203.0,97202.0,0.40492065]
[1739289258728,0.0001066,97203.0,97202.0,0.41892065]
[1739289259264,0.0001066,97203.0,97202.0,0.40392065]
[1739289259675,0.0001066,97203.0,97202.0,0.42592065]
[1739289259935,0.0001066,97203.0,97202.0,0.41892065]
[1739289260145,0.0001066,97203.0,97202.0,0.40392065]
[1739289260352,0.0001066,97203.0,97202.0,0.43545716]
[1739289260536,0.0001066,97203.0,97202.0,0.42845716]
[1739289260872,0.0001066,97203.0,97202.0,0.43545716]
[1739289262101,0.0001066,97203.0,97202.0,0.89305716]
[1739289262300,0.0001066,97203.0,97202.0,0.90805716]
[1739289263068,0.0001066,97203.0,97202.0,3.90805716]
[1739289264206,0.0001066,97203.0,97202.0,3.91962449]
[1739289265062,0.0001066,97203.0,97202.0,3.89762449]
[1739289265492,0.0001066,97203.0,97202.0,3.90462449]
[1739289265691,0.0001066,97203.0,97202.0,3.91262449]
[1739289266090,0.0001066,97203.0,97202.0,3.91962449]
[1739289266430,0.0001066,97203.0,97202.0,3.90462449]
[1739289266762,0.0001066,97203.0,97202.0,3.91962449]
[1739289269007,0.0001066,97203.0,97202.0,3.91984835]
[1739289270640,0.0001066,97203.0,97202.0,3.90484835]
[1739289271946,0.0001066,97203.0,97202.0,3.89784835]
[1739289272147,0.0001066,97203.0,97202.0,3.90484835]
[1739289272523,0.0001066,97203.0,97202.0,3.91984835]
[1739289272938,0.0001066,97203.0,97202.0,3.91284835]
[1739289273139,0.0001066,97203.0,97202.0,3.89784835]
[1739289273338,0.0001066,97203.0,97202.0,3.90484835]
[1739289273541,0.0001066,97203.0,97202.0,3.91984835]
[1739289276149,6e-07,97203.0,97202.0,4.43924835]
[1739289277231,6e-07,97203.0,97202.0,4.42424835]
[1739289277452,6e-07,97203.0,97202.0,4.43924835]
[1739289278125,6e-07,97203.0,97202.0,4.43224835]
[1739289278529,6e-07,97203.0,97202.0,4.43924835]
[1739289281858,0.0002,97229.0,97228.0,0.304276]
[1739289282060,0.00033308,97229.0,97228.0,0.55597965]
[1739289283016,0.00033308,97229.0,97228.0,0.56297965]
[1739289283299,0.00033308,97229.0,97228.0,0.89511616]
[1739289284288,0.00033308,97229.0,97228.0,0.88811616]
[1739289284511,0.00033308,97229.0,97228.0,0.90311616]
[1739289284718,0.00033308,97229.0,97228.0,0.91011616]
[1739289284882,0.00033308,97229.0,97228.0,0.88811616]
[1739289285080,0.00033308,97229.0,97228.0,0.90003875]
[1739289285371,0.00033308,97229.0,97228.0,0.92203875]
[1739289286810,0.00033308,97229.0,97228.0,0.91011616]
[1739289287351,0.00033308,97229.0,97228.0,0.86141616]
[1739289290554,0.00033308,97229.0,97228.0,0.90681616]
[1739289293318,0.00043968,97229.0,97228.0,0.90681616]
[1739289295835,0.00043968,97229.0,97228.0,0.89727965]
[1739289299163,0.00043968,97229.0,97228.0,1.41667965]
[1739289300779,0.14259424,97250.0,97228.0,1.04400365]
[1739289301002,0.0461,97247.0,97238.0,0.154259]
[1739289301204,0.0461,97247.0,97228.0,0.022]
[1739289301205,0.0725,97243.0,97228.0,0.022]
[1739289301408,0.154258,97240.0,97232.0,0.15427]
[1739289301629,0.154257,97241.0,97233.0,0.10250365]
[1739289301791,0.0725,97243.0,97233.0,0.10250365]
[1739289301996,0.0461,97247.0,97233.0,0.10250365]
[1739289302202,0.0461,97247.0,97235.0,0.154263]
[1739289302451,0.154247,97246.0,97236.0,0.10250365]
[1739289302872,0.0461,97247.0,97236.0,0.10250365]
[1739289303276,0.200346,97247.0,97236.0,0.10250365]
[1739289303610,0.0461,97247.0,97236.0,0.10250365]
[1739289303821,0.0461,97247.0,97238.0,0.20568]
[1739289304017,0.0461,97247.0,97239.0,0.25676265]
[1739289304229,0.0461,97247.0,97239.0,0.10250365]
[1739289305396,0.0461,97247.0,97239.0,0.10450365]
[1739289306548,0.0462065,97247.0,97239.0,0.10450365]
[1739289306683,0.0462065,97247.0,97239.0,0.11150365]
[1739289308078,0.0452065,97247.0,97239.0,0.11150365]
[1739289308480,0.0001065,97247.0,97239.0,0.11150365]
[1739289309968,0.0001065,97247.0,97239.0,0.26576165]
[1739289310583,0.0001065,97247.0,97239.0,0.11150365]
[1739289311241,0.03620471,97247.0,97239.0,0.11150365]
[1739289312230,0.0001065,97247.0,97239.0,0.11150365]
[1739289312426,0.0001065,97247.0,97239.0,0.009]
[1739289312650,0.154249,97246.0,97239.0,0.009]
[1739289313448,0.359904,97248.0,97239.0,0.009]
[1739289313665,0.20566,97248.0,97239.0,0.002]
[1739289313861,0.154246,97247.0,97234.0,0.154266]
[1739289314066,0.154246,97247.0,97235.0,0.10250365]
[1739289314264,0.154246,97247.0,97239.0,0.003]
[1739289314551,0.15697013,97246.0,97239.0,0.008]
[1739289314784,0.15697013,97246.0,97239.0,0.01]
[1739289314999,0.15697013,97246.0,97239.0,0.008]
[1739289315241,0.00272213,97246.0,97240.0,0.10250365]
[1739289315676,0.14259424,97250.0,97229.0,0.205699]
[1739289315865,0.15698367,97245.0,97231.0,0.154271]
[1739289316105,0.14259424,97241.0,97215.0,0.08256914]
[1739289316519,0.205679,97239.0,97220.0,0.154288]
[1739289316736,0.205684,97237.0,97235.0,0.007]
[1739289316941,0.154263,97236.0,97235.0,0.007]
[1739289317145,0.15698828,97236.0,97235.0,0.007]
[1739289317349,0.205687,97235.0,97221.0,0.00958382]
[1739289317551,0.00272528,97236.0,97228.0,0.1137273]
[1739289317756,0.00272161,97234.0,97228.0,0.1187273]
[1739289317960,0.0102,97269.0,97236.0,0.023]
[1739289317961,0.01156383,97247.0,97236.0,0.023]
[1739289318171,0.15,97246.0,97237.0,0.10250365]
[1739289318373,0.00272962,97245.0,97239.0,0.154257]
[1739289318589,0.00272962,97245.0,97235.0,0.021]
[1739289318808,0.154249,97245.0,97235.0,0.021]
[1739289318983,0.00098751,97246.0,97235.0,0.021]
[1739289318984,0.00272867,97244.0,97235.0,0.021]
[1739289319233,0.15523551,97246.0,97235.0,0.021]
[1739289319445,0.0027284,97243.0,97235.0,0.021]
[1739289319647,0.15697794,97245.0,97235.0,0.021]
[1739289319781,0.00272814,97242.0,97235.0,0.021]
[1739289319981,0.00098751,97244.0,97239.0,0.00022365]
[1739289320183,0.0027284,97243.0,97239.0,0.00022365]
[1739289320395,0.07804964,97243.0,97239.0,0.00022365]
[1739289320805,0.0027284,97243.0,97239.0,0.00022365]
[1739289321165,0.00371591,97243.0,97239.0,0.00022365]
[1739289321505,0.00371591,97243.0,97239.0,0.00322365]
[1739289321953,0.00371591,97243.0,97239.0,0.01322365]
[1739289322211,0.0027284,97243.0,97239.0,0.01322365]
[1739289322395,0.04586937,97242.0,97239.0,0.01322365]
[1739289322549,0.00272787,97241.0,97239.0,0.01322365]
[1739289322945,0.00098751,97245.0,97239.0,0.01322365]
[1739289323160,0.00098751,97243.0,97239.0,0.01322365]
[1739289323362,0.00272814,97242.0,97239.0,0.01022365]
[1739289323608,0.00272814,97242.0,97239.0,0.00022365]
[1739289323785,0.00098751,97243.0,97239.0,0.01522365]
[1739289324319,0.154249,97245.0,97239.0,0.00722365]
[1739289324525,0.00272814,97242.0,97239.0,0.00022365]
[1739289324809,0.00272787,97241.0,97239.0,0.01522365]
[1739289325005,0.00272787,97241.0,97239.0,0.01122365]
[1739289325215,0.205661,97248.0,97239.0,0.00022365]
[1739289325412,0.00098751,97245.0,97240.0,0.0764]
[1739289326043,0.00098751,97245.0,97241.0,0.10250365]
[1739289326462,0.00143095,97249.0,97241.0,0.10250365]
[1739289326637,0.15567395,97249.0,97241.0,0.10250365]
[1739289327451,0.00143095,97249.0,97241.0,0.10250365]
[1739289327864,0.00143095,97249.0,97241.0,0.10450365]
[1739289328823,0.15567495,97249.0,97241.0,0.10450365]
[1739289329452,0.00143095,97249.0,97241.0,0.10450365]
[1739289329876,0.15567395,97249.0,97241.0,0.10450365]
[1739289330080,0.00143095,97249.0,97241.0,0.11050365]
[1739289330622,0.00143095,97249.0,97241.0,0.008]
[1739289331092,0.0467,97248.0,97241.0,0.008]
[1739289331290,0.154254,97242.0,97241.0,0.008]
[1739289332132,0.15698774,97242.0,97241.0,0.008]
[1739289332988,0.15698774,97242.0,97241.0,0.002]
[1739289333188,0.00273374,97242.0,97239.0,0.00022365]
[1739289333392,0.00273374,97242.0,97241.0,0.004]
[1739289333393,0.15698774,97242.0,97241.0,0.004]
[1739289333805,0.00273374,97242.0,97241.0,0.004]
[1739289334037,0.15698774,97242.0,97241.0,0.004]
[1739289334201,0.15698774,97242.0,97241.0,0.015]
[1739289335086,0.18842978,97242.0,97241.0,0.015]
[1739289337660,0.19955277,97242.0,97241.0,0.015]
[1739289338771,0.18842978,97242.0,97241.0,0.015]
[1739289339392,0.15698774,97242.0,97241.0,0.015]
[1739289342299,0.30698774,97242.0,97241.0,0.015]
[1739289342727,0.40949139,97242.0,97241.0,0.015]
[1739289342921,0.45849139,97242.0,97241.0,0.015]
[1739289343117,0.47882034,97242.0,97241.0,0.015]
[1739289343356,0.59132399,97242.0,97241.0,0.004]
[1739289343506,0.59132399,97242.0,97241.0,0.008]
[1739289343710,0.59132399,97242.0,97241.0,0.004]
[1739289343916,0.304298,97214.0,97213.0,0.08201644]
[1739289344126,0.3397178,97214.0,97213.0,0.08201644]
[1739289344313,0.154314,97204.0,97195.0,0.0828]
[1739289344678,0.154314,97204.0,97203.0,0.00022386]